fUSD/lending_fUSD_20241128
["ID","MTS","AMOUNT","RATE_DAILY","PERIOD"]
[343639801,1732768152030,-1000.0,9.7e-05,3]
[343639802,1732768152051,-1000.0,9.8e-05,3]
[343639803,1732768152072,-15952.43963201,9.9e-05,2]
[343639804,1732768152092,-1102.0,9.9e-05,2]
[343639805,1732768152113,-1602.0,9.9e-05,3]
[343639806,1732768152133,-868.0,9.973e-05,2]
[343639807,1732768152154,-930.0,9.973e-05,2]
[343639808,1732768152176,-829.81496779,9.976e-05,2]
[343639809,1732768152198,-829.81496779,9.98e-05,2]
[343639810,1732768152220,-829.81496779,9.982e-05,2]
[343639811,1732768152241,-829.81496779,9.985e-05,2]
[343639812,1732768152262,-829.81496779,9.986e-05,2]
[343639813,1732768152284,-829.81496779,9.994e-05,2]
[343639814,1732768152308,-500.0,9.999e-05,2]
[343639815,1732768152329,-500.0,9.999e-05,2]
[343639816,1732768152352,-500.0,9.999e-05,2]
[343639817,1732768152374,-500.0,9.999e-05,2]
[343639818,1732768152396,-629.9,9.999e-05,2]
[343639819,1732768152418,-500.0,9.999e-05,2]
[343639820,1732768152441,-419.41,9.999e-05,2]
[343639821,1732768152463,-26214.56862455,0.0001,2]
[343639822,1732768152485,-219805.0582187,0.0001,2]
[343639823,1732768167724,20000.0,0.00027,60]
[343639879,1732768233426,-231.990995,9.677e-05,2]
[343639880,1732768233436,-231.990995,9.798e-05,2]
[343639881,1732768233445,-257.26321895,9.798e-05,2]
[343639882,1732768233456,-150.0,9.9e-05,2]
[343639883,1732768233465,-176.89851186,9.9e-05,2]
[343639884,1732768233475,-231.990995,9.919e-05,2]
[343639885,1732768233484,-200.0,9.97e-05,2]
[343639886,1732768233494,-503.81524592,9.973e-05,2]
[343639887,1732768233504,-509.99462947,9.975e-05,2]
[343639888,1732768233529,-514.31562927,9.975e-05,2]
[343639889,1732768233538,-13.65726583,9.976e-05,2]
[343639896,1732768239931,-14.76694239,9.973e-05,2]
[343639897,1732768240054,-262.98301177,9.973e-05,2]
[343639898,1732768240066,-222.25004584,9.973e-05,2]
[343639899,1732768240075,-318.09995417,9.976e-05,2]
[343639914,1732768242663,-692.55303874,9.976e-05,2]
[343639915,1732768242673,-1024.31025874,9.977e-05,2]
[343639916,1732768242684,-1024.31025874,9.98e-05,2]
[343639917,1732768242695,-200.0,9.984e-05,2]
[343639918,1732768242703,-78.43758076,9.984e-05,2]
[343639919,1732768242882,-3462.5730932,9.984e-05,2]
[343639920,1732768242893,-1326.47876664,9.989e-05,2]
[343639930,1732768245766,-2214.53190732,9.989e-05,2]
[343639931,1732768245776,-200.0,9.989e-05,2]
[343639932,1732768245786,-1024.31025874,9.99e-05,2]
[343639933,1732768245795,-3541.01067396,9.99e-05,2]
[343639934,1732768245805,-3541.01067396,9.992e-05,2]
[343639935,1732768245815,-3541.01067396,9.994e-05,2]
[343639936,1732768245824,-1024.31025874,9.995e-05,2]
[343639937,1732768245834,-3541.01067396,9.997e-05,2]
[343639938,1732768245843,-5018.34701093,9.998e-05,2]
[343639939,1732768245855,-1566.95093932,9.998e-05,2]
[343639940,1732768369005,18976.0,0.00027,60]
[343639945,1732768761780,5100.0,0.00015,15]
[343639946,1732768794894,5100.0,0.00015,16]
[343639947,1732768802411,5100.0,0.00015,17]
[343639948,1732768821441,1000.0,0.00027,60]
[343639949,1732768824125,5100.0,0.00015,18]
[343639950,1732768829404,5100.0,0.00015,19]
[343639951,1732768861526,5100.0,0.00015,21]
[343639952,1732769155298,150.0,0.00027,60]
[343639953,1732769173936,10105.2864085,0.00027,60]
[343639956,1732769361863,2920458.02032305,0.00027,60]
[343639957,1732769376443,3306276.00238944,0.00026,120]
[343639958,1732769392794,145980.80577815,0.00022,120]
[343639959,1732769392824,20000.0,0.00022,120]
[343639960,1732769392853,194742.8279271,0.00022,120]
[343639961,1732769392879,146100.0,0.00022,120]
[343639962,1732769392908,700000.0,0.00022,120]
[343639963,1732769392945,1441723.65976313,0.00022,120]
[343639964,1732769392981,5000000.0,0.00022,120]
[343639969,1732769431906,-515.24829337,8.219e-05,2]
[343639970,1732769431917,-998.03864729,8.219e-05,2]
[343639971,1732769431929,-19.90305934,8.219e-05,2]
[343639972,1732769431938,-250.0,8.698e-05,2]
[343639973,1732769431947,-450.07279842,8.698e-05,2]
[343639974,1732769431957,-256.57665933,8.715e-05,2]
[343639975,1732769431968,-295.43334067,8.715e-05,2]
[343639976,1732769431977,-1000.0,8.726e-05,2]
[343639977,1732769431990,-300.0,8.739e-05,2]
[343639978,1732769432001,-20169.27,8.74e-05,2]
[343639979,1732769432010,-294.86,8.743e-05,2]
[343639980,1732769432020,-151.86,8.758e-05,2]
[343639981,1732769432032,-227.26,8.758e-05,2]
[343639982,1732769432041,-200.0,8.825e-05,2]
[343639983,1732769432054,-2989.69,8.89e-05,2]
[343639984,1732769432064,-16832.3703,8.9e-05,2]
[343639985,1732769432074,-167.38,8.934e-05,2]
[343639986,1732769432083,-1765.09708289,8.999e-05,2]
[343639987,1732769432093,-150.0,8.999e-05,2]
[343639988,1732769432102,-93061.85873646,9e-05,2]
[343639989,1732769432113,-14127.36994088,9e-05,2]
[343639990,1732769432124,-3211.6503843,9e-05,2]
[343639991,1732769432155,-1282.45349842,9e-05,2]
[343639992,1732769432165,-688.787523,9e-05,2]
[343640001,1732769438117,-9315.63957483,9e-05,2]
[343640006,1732769439955,-375.29274325,9e-05,2]
[343640007,1732769439966,-2169.12999999,9e-05,2]
[343640011,1732769442868,-2659.62830524,9e-05,2]
[343640014,1732769443141,-1303.2850853,9e-05,2]
[343640017,1732769445870,-2978.29570356,9e-05,2]
[343640018,1732769445931,-36067.0747937,9e-05,2]
[343640019,1732769448271,400000.0,0.000205,120]
[343640020,1732769448300,50000.0,0.000205,120]
[343640021,1732769448329,60000.0,0.000205,120]
[343640022,1732769448381,6800000.0,0.000205,120]
[343640023,1732769725212,150.0,7.15e-05,2]
[343640024,1732769725235,150.0,7.15e-05,2]
[343640025,1732769725257,150.0,7.15e-05,2]
[343640026,1732769725281,150.0,7.15e-05,2]
[343640027,1732769725303,150.0,7.15e-05,2]
[343640028,1732769725324,150.0,7.15e-05,2]
[343640029,1732769725346,150.0,7.15e-05,2]
[343640030,1732769725371,150.0,7.15e-05,2]
[343640031,1732769725392,150.0,7.15e-05,2]
[343640032,1732769725413,150.0,7.15e-05,2]
[343640033,1732769725434,150.0,7.15e-05,2]
[343640034,1732769725455,150.0,7.15e-05,2]
[343640035,1732769725476,150.0,7.15e-05,2]
[343640036,1732769725498,150.0,7.15e-05,2]
[343640037,1732769725520,150.0,7.15e-05,2]
[343640038,1732769725545,150.0,7.15e-05,2]
[343640039,1732769725567,150.0,7.15e-05,2]
[343640040,1732769725589,150.0,7.15e-05,2]
[343640041,1732769725610,150.0,7.15e-05,2]
[343640042,1732769725635,800.0,7.15e-05,2]
[343640043,1732769725656,800.0,7.15e-05,2]
[343640044,1732769725677,800.0,7.15e-05,2]
[343640045,1732769725696,800.0,7.15e-05,2]
[343640046,1732769725716,800.0,7.15e-05,2]
[343640047,1732769725748,-150.0,7.15e-05,2]
[343640048,1732769725790,-150.0,7.15e-05,2]
[343640049,1732769725832,-150.0,7.15e-05,2]
[343640050,1732769725876,-150.0,7.15e-05,2]
[343640051,1732769725908,-150.0,7.15e-05,2]
[343640052,1732769726022,-150.0,7.15e-05,2]
[343640053,1732769726084,-150.0,7.15e-05,2]
[343640054,1732769726174,-150.0,7.15e-05,2]
[343640055,1732769726285,-229.20714838,7.15e-05,2]
[343640056,1732769726370,-150.0,7.15e-05,2]
[343640057,1732769726447,-150.0,7.15e-05,2]
[343640058,1732769726522,-150.0,7.15e-05,2]
[343640059,1732769726635,-150.0,7.15e-05,2]
[343640060,1732769726737,-150.0,7.15e-05,2]
[343640061,1732769726846,-150.0,7.15e-05,2]
[343640062,1732769726962,-150.0,7.15e-05,2]
[343640063,1732769743866,150.0,7.14e-05,2]
[343640064,1732769743896,150.0,7.14e-05,2]
[343640065,1732769743926,150.0,7.14e-05,2]
[343640066,1732769743956,150.0,7.14e-05,2]
[343640067,1732769743987,150.0,7.14e-05,2]
[343640068,1732769744015,150.0,7.14e-05,2]
[343640069,1732769744043,150.0,7.14e-05,2]
[343640070,1732769744071,150.0,7.14e-05,2]
[343640071,1732769744103,150.0,7.14e-05,2]
[343640072,1732769744135,89320.79285162,7.14e-05,2]
[343640077,1732770296212,-1556.64,8.219e-05,2]
[343640078,1732770296235,-167.38,8.961e-05,2]
[343640079,1732770296257,-250.0,8.98e-05,2]
[343640080,1732770296282,-302.76,8.994e-05,2]
[343640081,1732770296305,-300.0,8.999e-05,2]
[343640082,1732770296328,-16202.53371107,9e-05,2]
[343640083,1732770296352,-1000.0,9.016e-05,2]
[343640084,1732770296377,-150.37,9.02e-05,2]
[343640085,1732770296398,-150.45,9.02e-05,2]
[343640086,1732770296423,-417.48901917,9.295e-05,2]
[343640087,1732770296446,-417.48901917,9.511e-05,2]
[343640088,1732770296467,-400.0,9.589e-05,2]
[343640089,1732770296488,-734.69,9.589e-05,2]
[343640090,1732770296509,-150.0,9.649e-05,2]
[343640091,1732770296536,-32853.42925494,9.65e-05,2]
[343640092,1732770296568,-734.69,9.726e-05,2]
[343640093,1732770296590,-2500.0,9.763e-05,2]
[343640094,1732770296612,-417.48901917,9.787e-05,2]
[343640095,1732770296634,-150.99,9.817e-05,2]
[343640096,1732770296655,-10705.54,9.817e-05,2]
[343640097,1732770296678,-150.0,9.854e-05,2]
[343640098,1732770296700,-500.0,9.863e-05,2]
[343640099,1732770296723,-502.45662163,9.863e-05,2]
[343640100,1732770296745,-500.0,9.863e-05,2]
[343640101,1732770296769,-502.02477765,9.863e-05,2]
[343640102,1732770296793,-500.0,9.863e-05,2]
[343640103,1732770296815,-500.0,9.863e-05,2]
[343640104,1732770296837,-500.0,9.863e-05,2]
[343640105,1732770296859,-500.0,9.863e-05,2]
[343640106,1732770296880,-508.85369349,9.863e-05,2]
[343640107,1732770296901,-500.0,9.863e-05,2]
[343640108,1732770296923,-500.0,9.863e-05,2]
[343640109,1732770296945,-500.0,9.863e-05,2]
[343640110,1732770296967,-500.0,9.863e-05,2]
[343640111,1732770296989,-628.83,9.863e-05,2]
[343640112,1732770297012,-500.0,9.863e-05,2]
[343640113,1732770297036,-500.83323551,9.863e-05,2]
[343640114,1732770297059,-500.0,9.863e-05,2]
[343640115,1732770297082,-501.95464297,9.863e-05,2]
[343640116,1732770297104,-500.0,9.863e-05,2]
[343640117,1732770297126,-500.0,9.863e-05,2]
[343640118,1732770297148,-500.0,9.863e-05,2]
[343640119,1732770297171,-500.0,9.863e-05,2]
[343640120,1732770297193,-500.0,9.863e-05,2]
[343640121,1732770297215,-500.0,9.863e-05,2]
[343640122,1732770297237,-500.0,9.863e-05,2]
[343640123,1732770297259,-500.0,9.863e-05,2]
[343640124,1732770297290,-454.88621538,9.863e-05,2]
[343640125,1732770297313,-500.0,9.863e-05,2]
[343640126,1732770297336,-500.0,9.863e-05,2]
[343640127,1732770297363,-500.0,9.863e-05,2]
[343640128,1732770297384,-500.0,9.863e-05,2]
[343640129,1732770297406,-500.0,9.863e-05,2]
[343640130,1732770297432,-500.0,9.863e-05,2]
[343640131,1732770297454,-500.0,9.863e-05,2]
[343640132,1732770297476,-502.04585386,9.863e-05,2]
[343640133,1732770297499,-500.0,9.863e-05,2]
[343640134,1732770297520,-500.0,9.863e-05,2]
[343640135,1732770297544,-500.0,9.863e-05,2]
[343640136,1732770297566,-500.0,9.863e-05,2]
[343640137,1732770297589,-602.28,9.863e-05,2]
[343640138,1732770297613,-500.0,9.863e-05,2]
[343640139,1732770297635,-500.0,9.863e-05,2]
[343640140,1732770297657,-590.06,9.863e-05,2]
[343640141,1732770297679,-249.87720765,9.863e-05,2]
[343640142,1732770297702,-500.0,9.863e-05,2]
[343640143,1732770297725,-500.0,9.863e-05,2]
[343640144,1732770297749,-558.69,9.863e-05,2]
[343640145,1732770297772,-500.0,9.863e-05,2]
[343640146,1732770297797,-500.0,9.863e-05,2]
[343640147,1732770297819,-336.31659249,9.863e-05,2]
[343640148,1732770297842,-500.0,9.863e-05,2]
[343640149,1732770297867,-500.0,9.863e-05,2]
[343640150,1732770297888,-500.0,9.863e-05,2]
[343640151,1732770297910,-500.0,9.863e-05,2]
[343640152,1732770297933,-500.0,9.863e-05,2]
[343640153,1732770297955,-500.0,9.863e-05,2]
[343640154,1732770297977,-508.08335078,9.863e-05,2]
[343640155,1732770297999,-500.0,9.863e-05,2]
[343640156,1732770298021,-500.0,9.863e-05,2]
[343640157,1732770298045,-500.0,9.863e-05,2]
[343640158,1732770298067,-500.0,9.863e-05,2]
[343640159,1732770298089,-500.0,9.863e-05,2]
[343640160,1732770298111,-500.0,9.863e-05,2]
[343640161,1732770298135,-500.0,9.863e-05,2]
[343640162,1732770298159,-500.0,9.863e-05,2]
[343640163,1732770298182,-500.0,9.863e-05,2]
[343640164,1732770298205,-500.0,9.863e-05,2]
[343640165,1732770298228,-500.0,9.863e-05,2]
[343640166,1732770298250,-500.0,9.863e-05,2]
[343640167,1732770298277,-500.0,9.863e-05,2]
[343640168,1732770298303,-343.47951522,9.863e-05,2]
[343640169,1732770298327,-500.0,9.863e-05,2]
[343640170,1732770298350,-500.0,9.863e-05,2]
[343640171,1732770298374,-500.0,9.863e-05,2]
[343640172,1732770298397,-500.0,9.863e-05,2]
[343640173,1732770298420,-500.0,9.863e-05,2]
[343640174,1732770298443,-500.0,9.863e-05,2]
[343640175,1732770298465,-500.0,9.863e-05,2]
[343640176,1732770298486,-501.80729452,9.863e-05,2]
[343640177,1732770298508,-500.0,9.863e-05,2]
[343640178,1732770298530,-500.0,9.863e-05,2]
[343640179,1732770298553,-500.47890407,9.863e-05,2]
[343640180,1732770298576,-500.0,9.863e-05,2]
[343640181,1732770298598,-500.0,9.863e-05,2]
[343640182,1732770298620,-500.0,9.863e-05,2]
[343640183,1732770298644,-500.0,9.863e-05,2]
[343640184,1732770298669,-500.0,9.863e-05,2]
[343640185,1732770298691,-503.10743019,9.863e-05,2]
[343640186,1732770298713,-520.04189477,9.863e-05,2]
[343640187,1732770298735,-500.0,9.863e-05,2]
[343640188,1732770298758,-509.04229449,9.863e-05,2]
[343640189,1732770298783,-500.0,9.863e-05,2]
[343640190,1732770298806,-500.0,9.863e-05,2]
[343640191,1732770298828,-515.12,9.863e-05,2]
[343640192,1732770298854,-510.29067823,9.863e-05,2]
[343640193,1732770298876,-500.0,9.863e-05,2]
[343640194,1732770298899,-500.0,9.863e-05,2]
[343640195,1732770298921,-500.0,9.863e-05,2]
[343640196,1732770298944,-500.0,9.863e-05,2]
[343640197,1732770298967,-254.8,9.863e-05,2]
[343640198,1732770298988,-500.0,9.863e-05,2]
[343640199,1732770299010,-500.0,9.863e-05,2]
[343640200,1732770299033,-500.0,9.863e-05,2]
[343640201,1732770299056,-500.0,9.863e-05,2]
[343640202,1732770299079,-500.0,9.863e-05,2]
[343640203,1732770299107,-500.0,9.863e-05,2]
[343640204,1732770299129,-504.15645332,9.863e-05,2]
[343640205,1732770299152,-500.0,9.863e-05,2]
[343640206,1732770299176,-500.0,9.863e-05,2]
[343640207,1732770299198,-502.00485016,9.863e-05,2]
[343640208,1732770299221,-500.0,9.863e-05,2]
[343640209,1732770299245,-500.0,9.863e-05,2]
[343640210,1732770299268,-503.39545725,9.863e-05,2]
[343640211,1732770299295,-500.0,9.863e-05,2]
[343640212,1732770299319,-511.73,9.863e-05,2]
[343640213,1732770299580,-506.58741235,9.863e-05,2]
[343640214,1732770299605,-500.0,9.863e-05,2]
[343640215,1732770299628,-500.0,9.863e-05,2]
[343640216,1732770299651,-506.80109397,9.863e-05,2]
[343640217,1732770299673,-628.38877639,9.863e-05,2]
[343640218,1732770299696,-500.0,9.863e-05,2]
[343640219,1732770299720,-500.0,9.863e-05,2]
[343640220,1732770299745,-500.0,9.863e-05,2]
[343640221,1732770299770,-500.0,9.863e-05,2]
[343640222,1732770299794,-500.0,9.863e-05,2]
[343640223,1732770299820,-500.0,9.863e-05,2]
[343640224,1732770299845,-500.0,9.863e-05,2]
[343640225,1732770299869,-501.55120267,9.863e-05,2]
[343640226,1732770299892,-500.0,9.863e-05,2]
[343640227,1732770299916,-280.05,9.863e-05,2]
[343640228,1732770299941,-500.0,9.863e-05,2]
[343640229,1732770299965,-500.0,9.863e-05,2]
[343640230,1732770299990,-500.0,9.863e-05,2]
[343640231,1732770300015,-630.28,9.863e-05,2]
[343640232,1732770300041,-502.07001916,9.863e-05,2]
[343640233,1732770300066,-385.6,9.863e-05,2]
[343640234,1732770300089,-500.0,9.863e-05,2]
[343640235,1732770300114,-500.0,9.863e-05,2]
[343640236,1732770300138,-500.0,9.863e-05,2]
[343640237,1732770300162,-500.0,9.863e-05,2]
[343640238,1732770300185,-500.0,9.863e-05,2]
[343640239,1732770300209,-500.0,9.863e-05,2]
[343640240,1732770300231,-506.4931247,9.863e-05,2]
[343640241,1732770300254,-506.59091805,9.863e-05,2]
[343640242,1732770300279,-237.99,9.863e-05,2]
[343640243,1732770300304,-500.0,9.863e-05,2]
[343640244,1732770300328,-500.0,9.863e-05,2]
[343640245,1732770300351,-500.0,9.863e-05,2]
[343640246,1732770300374,-500.0,9.863e-05,2]
[343640247,1732770300396,-577.5,9.863e-05,2]
[343640248,1732770300418,-500.0,9.863e-05,2]
[343640249,1732770300440,-1055.83,9.863e-05,2]
[343640250,1732770300462,-501.96578971,9.863e-05,2]
[343640251,1732770300482,-509.86661809,9.863e-05,2]
[343640252,1732770300503,-500.0,9.863e-05,2]
[343640253,1732770300524,-500.0,9.863e-05,2]
[343640254,1732770300552,-500.0,9.863e-05,2]
[343640255,1732770300578,-943.63,9.863e-05,2]
[343640256,1732770300603,-500.0,9.863e-05,2]
[343640257,1732770300625,-1053.06,9.863e-05,2]
[343640258,1732770300648,-500.0,9.863e-05,2]
[343640259,1732770300670,-913.11,9.863e-05,2]
[343640260,1732770300691,-506.78198211,9.863e-05,2]
[343640261,1732770300714,-519.71323386,9.863e-05,2]
[343640262,1732770300736,-500.0,9.863e-05,2]
[343640263,1732770300759,-501.9253071,9.863e-05,2]
[343640264,1732770300781,-1087.7,9.863e-05,2]
[343640265,1732770300810,-500.0,9.863e-05,2]
[343640266,1732770300831,-443.23798797,9.863e-05,2]
[343640267,1732770300854,-512.1443683,9.863e-05,2]
[343640268,1732770300875,-500.0,9.863e-05,2]
[343640269,1732770300897,-180.08,9.863e-05,2]
[343640270,1732770300919,-2349.28,9.863e-05,2]
[343640271,1732770300941,-1200.53,9.863e-05,2]
[343640272,1732770300962,-502.15757007,9.863e-05,2]
[343640273,1732770300983,-500.0,9.863e-05,2]
[343640274,1732770301010,-791.67,9.863e-05,2]
[343640275,1732770301038,-500.0,9.863e-05,2]
[343640276,1732770301060,-500.0,9.863e-05,2]
[343640277,1732770301082,-2553.77,9.863e-05,2]
[343640278,1732770301105,-500.0,9.863e-05,2]
[343640279,1732770301128,-500.0,9.863e-05,2]
[343640280,1732770301152,-500.0,9.863e-05,2]
[343640281,1732770301174,-500.0,9.863e-05,2]
[343640282,1732770301197,-625.4,9.863e-05,2]
[343640283,1732770301219,-500.0,9.863e-05,2]
[343640284,1732770301242,-500.0,9.863e-05,2]
[343640285,1732770301272,-1492.14,9.863e-05,2]
[343640286,1732770301299,-1427.91,9.863e-05,2]
[343640287,1732770301322,-500.0,9.863e-05,2]
[343640288,1732770301348,-500.0,9.863e-05,2]
[343640289,1732770301373,-420.68,9.863e-05,2]
[343640290,1732770301396,-639.18,9.863e-05,2]
[343640291,1732770301418,-500.0,9.863e-05,2]
[343640292,1732770301443,-638.4,9.863e-05,2]
[343640293,1732770301470,-500.0,9.863e-05,2]
[343640294,1732770301493,-500.0,9.863e-05,2]
[343640295,1732770301517,-500.0,9.863e-05,2]
[343640296,1732770301545,-500.0,9.863e-05,2]
[343640297,1732770301567,-500.0,9.863e-05,2]
[343640298,1732770301589,-500.0,9.863e-05,2]
[343640299,1732770301612,-822.16,9.863e-05,2]
[343640300,1732770301636,-500.0,9.863e-05,2]
[343640301,1732770301659,-500.0,9.863e-05,2]
[343640302,1732770301682,-500.0,9.863e-05,2]
[343640303,1732770301704,-500.0,9.863e-05,2]
[343640304,1732770301726,-234.48459816,9.863e-05,2]
[343640305,1732770301748,-500.0,9.863e-05,2]
[343640306,1732770301771,-500.0,9.863e-05,2]
[343640307,1732770301796,-500.0,9.863e-05,2]
[343640308,1732770301823,-500.0,9.863e-05,2]
[343640309,1732770301846,-500.0,9.863e-05,2]
[343640310,1732770301869,-500.0,9.863e-05,2]
[343640311,1732770301891,-798.71,9.863e-05,2]
[343640312,1732770301914,-500.0,9.863e-05,2]
[343640313,1732770301937,-500.0,9.863e-05,2]
[343640314,1732770301960,-500.0,9.863e-05,2]
[343640315,1732770301982,-500.0,9.863e-05,2]
[343640316,1732770302004,-500.0,9.863e-05,2]
[343640317,1732770302028,-500.0,9.863e-05,2]
[343640318,1732770302059,-500.0,9.863e-05,2]
[343640319,1732770302082,-605.23,9.863e-05,2]
[343640320,1732770302104,-500.0,9.863e-05,2]
[343640321,1732770302127,-500.0,9.863e-05,2]
[343640322,1732770302150,-500.0,9.863e-05,2]
[343640323,1732770302173,-500.0,9.863e-05,2]
[343640324,1732770302195,-829.32,9.863e-05,2]
[343640325,1732770302219,-500.0,9.863e-05,2]
[343640326,1732770302241,-500.0,9.863e-05,2]
[343640327,1732770302265,-500.0,9.863e-05,2]
[343640328,1732770302296,-500.0,9.863e-05,2]
[343640329,1732770302320,-500.0,9.863e-05,2]
[343640330,1732770302342,-500.0,9.863e-05,2]
[343640331,1732770302366,-500.0,9.863e-05,2]
[343640332,1732770302388,-500.0,9.863e-05,2]
[343640333,1732770302410,-500.0,9.863e-05,2]
[343640334,1732770302432,-500.0,9.863e-05,2]
[343640335,1732770302454,-500.0,9.863e-05,2]
[343640336,1732770302476,-176.26700125,9.863e-05,2]
[343640337,1732770302500,-500.0,9.863e-05,2]
[343640338,1732770302522,-500.0,9.863e-05,2]
[343640339,1732770302549,-500.0,9.863e-05,2]
[343640340,1732770302571,-500.0,9.863e-05,2]
[343640341,1732770302592,-500.0,9.863e-05,2]
[343640342,1732770302615,-171.62383187,9.863e-05,2]
[343640343,1732770302638,-500.0,9.863e-05,2]
[343640344,1732770302661,-500.0,9.863e-05,2]
[343640345,1732770302684,-500.0,9.863e-05,2]
[343640346,1732770302708,-500.0,9.863e-05,2]
[343640347,1732770302732,-500.0,9.863e-05,2]
[343640348,1732770302755,-500.0,9.863e-05,2]
[343640349,1732770302779,-500.0,9.863e-05,2]
[343640350,1732770302806,-769.74,9.863e-05,2]
[343640351,1732770302828,-500.0,9.863e-05,2]
[343640352,1732770302851,-500.0,9.863e-05,2]
[343640353,1732770302873,-500.0,9.863e-05,2]
[343640354,1732770302894,-506.06728812,9.863e-05,2]
[343640355,1732770302917,-500.0,9.863e-05,2]
[343640356,1732770302939,-500.0,9.863e-05,2]
[343640357,1732770302968,-500.0,9.863e-05,2]
[343640358,1732770302990,-500.0,9.863e-05,2]
[343640359,1732770303013,-500.0,9.863e-05,2]
[343640360,1732770303041,-500.0,9.863e-05,2]
[343640361,1732770303064,-500.0,9.863e-05,2]
[343640362,1732770303087,-500.0,9.863e-05,2]
[343640363,1732770303112,-500.0,9.863e-05,2]
[343640364,1732770303428,-500.0,9.863e-05,2]
[343640365,1732770303455,-500.0,9.863e-05,2]
[343640366,1732770303480,-500.0,9.863e-05,2]
[343640367,1732770303503,-500.0,9.863e-05,2]
[343640368,1732770303526,-955.93,9.863e-05,2]
[343640369,1732770303552,-500.0,9.863e-05,2]
[343640370,1732770303575,-500.0,9.863e-05,2]
[343640371,1732770303597,-500.0,9.863e-05,2]
[343640372,1732770303620,-500.0,9.863e-05,2]
[343640373,1732770303643,-895.49,9.863e-05,2]
[343640374,1732770303673,-500.0,9.863e-05,2]
[343640375,1732770303701,-500.0,9.863e-05,2]
[343640376,1732770303725,-500.0,9.863e-05,2]
[343640377,1732770303749,-500.0,9.863e-05,2]
[343640378,1732770303774,-500.0,9.863e-05,2]
[343640379,1732770303800,-500.0,9.863e-05,2]
[343640380,1732770303824,-500.0,9.863e-05,2]
[343640381,1732770303847,-500.0,9.863e-05,2]
[343640382,1732770303871,-500.0,9.863e-05,2]
[343640383,1732770303894,-500.0,9.863e-05,2]
[343640384,1732770303917,-500.0,9.863e-05,2]
[343640385,1732770303941,-505.30811821,9.863e-05,2]
[343640386,1732770303963,-500.0,9.863e-05,2]
[343640387,1732770303986,-500.0,9.863e-05,2]
[343640388,1732770304010,-500.0,9.863e-05,2]
[343640389,1732770304034,-500.0,9.863e-05,2]
[343640390,1732770304060,-500.0,9.863e-05,2]
[343640391,1732770304084,-500.0,9.863e-05,2]
[343640392,1732770304108,-500.0,9.863e-05,2]
[343640393,1732770304132,-228.93831089,9.863e-05,2]
[343640394,1732770304156,-500.0,9.863e-05,2]
[343640395,1732770304180,-500.0,9.863e-05,2]
[343640396,1732770304204,-500.0,9.863e-05,2]
[343640397,1732770304235,-500.0,9.863e-05,2]
[343640398,1732770304260,-500.0,9.863e-05,2]
[343640399,1732770304289,-500.0,9.863e-05,2]
[343640400,1732770304314,-500.0,9.863e-05,2]
[343640401,1732770304341,-500.0,9.863e-05,2]
[343640402,1732770304370,-500.0,9.863e-05,2]
[343640403,1732770304396,-1054.12,9.863e-05,2]
[343640404,1732770304421,-500.0,9.863e-05,2]
[343640405,1732770304445,-500.0,9.863e-05,2]
[343640406,1732770304469,-500.0,9.863e-05,2]
[343640407,1732770304494,-500.0,9.863e-05,2]
[343640408,1732770304517,-500.0,9.863e-05,2]
[343640409,1732770304543,-500.0,9.863e-05,2]
[343640410,1732770304566,-869.07,9.863e-05,2]
[343640411,1732770304591,-500.0,9.863e-05,2]
[343640412,1732770304614,-609.82,9.863e-05,2]
[343640413,1732770304638,-500.0,9.863e-05,2]
[343640414,1732770304662,-500.0,9.863e-05,2]
[343640415,1732770304685,-500.0,9.863e-05,2]
[343640416,1732770304708,-500.0,9.863e-05,2]
[343640417,1732770304732,-500.0,9.863e-05,2]